bitfinex/quotes_ETHUSD_20250611
["timestamp","ask_amount","ask_price","bid_price","bid_amount"]
[1749627895378,0.1792,2794.9,2794.8,20.212]
[1749627896465,4.8792,2794.9,2794.8,20.212]
[1749627897486,4.8792,2794.9,2794.8,19.261]
[1749627897687,4.8792,2794.9,2794.8,20.212]
[1749627899963,4.8792,2794.9,2794.8,19.261]
[1749627900283,5.46841,2794.9,2794.8,9.59416333]
[1749627900580,5.46841,2794.9,2794.8,10.212]
[1749627900581,6.47851,2794.9,2794.8,10.212]
[1749627901453,6.47851,2794.9,2794.8,10.54499184]
[1749627901661,6.47851,2794.9,2794.8,10.212]
[1749627903155,6.47851,2794.9,2794.8,10.54497954]
[1749627903490,6.47851,2794.9,2794.8,10.212]
[1749627907056,6.47851,2794.9,2794.8,10.54492454]
[1749627908758,5.46841,2794.9,2794.8,10.212]
[1749627908988,4.8792,2794.9,2794.8,10.212]
[1749627909294,4.8792,2794.9,2794.8,10.54474681]
[1749627909494,4.8792,2794.9,2794.8,10.212]
[1749627910501,5.842,2794.9,2794.8,10.212]
[1749627910707,7.04467997,2794.9,2794.8,10.54480686]
[1749627910888,7.04467997,2794.9,2794.8,10.212]
[1749627911294,7.04467997,2794.9,2794.8,10.54489979]
[1749627911605,7.04467997,2794.9,2794.8,10.54490304]
[1749627911909,7.04467997,2794.9,2794.8,10.212]
[1749627912210,7.04467997,2794.9,2794.8,10.544809]
[1749627912565,7.04467997,2794.9,2794.8,10.545809]
[1749627912772,7.04467997,2794.9,2794.8,10.213]
[1749627912972,5.842,2794.9,2794.8,0.952]
[1749627913477,4.8792,2794.9,2794.8,0.952]
[1749627914771,5.8647,2794.9,2794.8,0.952]
[1749627919690,4.8792,2794.9,2794.8,0.952]
[1749627923217,4.8792,2794.9,2794.8,0.95]
[1749627923413,6.45756997,2794.9,2794.8,0.95]
[1749627927942,0.9797,2794.8,2794.5,9.262]
[1749627928121,0.9797,2794.8,2794.6,0.95]
[1749627928122,0.9797,2794.7,2794.6,0.95]
[1749627928441,12.9894067,2794.7,2794.6,0.95]
[1749627928641,12.9894067,2794.7,2794.5,9.262]
[1749627928642,13.1686067,2794.7,2794.5,9.262]
[1749627928853,13.1686067,2794.7,2794.6,0.95]
[1749627928854,18.0052067,2794.7,2794.6,0.95]
[1749627929035,4.7,2794.5,2793.7,1.42424137]
[1749627929206,1.0134,2793.7,2793.5,1.42424137]
[1749627929404,14.7179997,2793.6,2793.3,1.42424137]
[1749627929635,0.1792,2793.4,2793.2,1.42424137]
[1749627929840,3.654,2793.5,2793.2,1.42424137]
[1749627930044,0.1792,2793.3,2793.2,1.42424137]
[1749627930314,0.1792,2793.3,2793.1,1.42424137]
[1749627930545,3.654,2793.5,2793.1,1.42424137]
[1749627930546,0.1792,2793.2,2793.1,1.42424137]
[1749627930950,0.1792,2793.2,2793.0,1.42424137]
[1749627931146,3.654,2793.5,2793.0,1.42424137]
[1749627931313,3.654,2793.5,2792.9,2.42424137]
[1749627931314,0.1792,2793.1,2792.9,2.42424137]
[1749627932352,0.1792,2793.1,2792.9,1.0]
[1749627934931,4.7,2793.0,2792.9,1.0]
[1749627935253,4.7,2793.0,2792.9,1.95]
[1749627937260,4.7,2793.0,2792.9,1.951]
[1749627937570,5.91131997,2793.0,2792.9,1.951]
[1749627939963,4.7,2793.0,2792.9,1.951]
[1749627944475,4.7,2793.0,2792.9,2.2829591]
[1749627944676,4.7,2793.0,2792.9,2.28290971]
[1749627944876,4.7,2793.0,2792.9,1.951]
[1749627945941,4.7,2793.0,2792.9,2.28289904]
[1749627946142,4.7,2793.0,2792.9,2.28289873]
[1749627946337,4.7,2793.0,2792.9,2.28290129]
[1749627946536,4.7,2793.0,2792.9,2.28289976]
[1749627946772,4.7,2793.0,2792.9,1.951]
[1749627947341,4.7,2793.0,2792.9,2.28187667]
[1749627947962,4.7,2793.0,2792.9,2.28182817]
[1749627948143,4.7,2793.0,2792.9,1.95]
[1749627949386,4.7,2793.0,2792.9,1.33183009]
[1749627949559,4.7,2793.0,2792.9,2.28182209]
[1749627949873,4.7,2793.0,2792.9,2.28182495]
[1749627950074,4.7,2793.0,2792.9,1.95]
[1749627950787,4.7,2793.0,2792.9,2.28182276]
[1749627951084,8.355,2793.0,2792.9,2.28180221]
[1749627951487,8.355,2793.0,2792.9,2.28180719]
[1749627951637,8.355,2793.0,2792.9,2.28209456]
[1749627951843,8.355,2793.0,2792.9,2.28209921]
[1749627952074,9.93280944,2793.0,2792.9,1.95]
[1749627952761,9.93280944,2793.0,2792.9,2.28207856]
[1749627953249,9.93280944,2793.0,2792.9,2.28206816]
[1749627953475,9.93280944,2793.0,2792.9,1.95]
[1749627954575,9.93280944,2793.0,2792.9,2.28217925]
[1749627954792,8.355,2793.0,2792.9,2.28217925]
[1749627955160,8.355,2793.0,2792.9,2.2827912]
[1749627955356,8.355,2793.0,2792.9,2.28279323]
[1749627955716,8.355,2793.0,2792.9,1.95]
[1749627956201,8.355,2793.0,2792.9,2.28279435]
[1749627956914,8.355,2793.0,2792.9,1.95]
[1749627957100,9.93280944,2793.0,2792.9,1.95]
[1749627957397,9.93280944,2793.0,2792.9,2.2828115]
[1749627957692,9.93280944,2793.0,2792.9,1.95]
[1749627958080,9.93280944,2793.0,2792.9,2.28281669]
[1749627958499,9.93280944,2793.0,2792.9,2.28436559]
[1749627958675,9.93280944,2793.0,2792.9,2.28437097]
[1749627958993,8.355,2793.0,2792.9,1.95]
[1749627959175,8.355,2793.0,2792.9,2.28436962]
[1749627959367,8.355,2793.0,2792.9,1.95]
[1749627959770,8.355,2793.0,2792.9,2.28437002]
[1749627960271,8.355,2793.0,2792.9,1.33437002]
[1749627960473,8.355,2793.0,2792.9,2.28441245]
[1749627960677,8.355,2793.0,2792.9,2.28443778]
[1749627960879,8.355,2793.0,2792.9,1.95]
[1749627961381,9.93280944,2793.0,2792.9,2.28445702]
[1749627961978,17.10390914,2793.0,2792.9,1.95]
[1749627962411,10.91910944,2793.0,2792.9,2.28477292]
[1749627962602,10.91910944,2793.0,2792.9,1.95]
[1749627962805,10.91910944,2793.0,2792.9,1.0]
[1749627962980,9.93280944,2793.0,2792.9,0.95]
[1749627963683,10.87790944,2793.0,2792.9,0.95]
[1749627963880,0.9936,2792.9,2792.7,9.265]
[1749627964080,2.71878039,2792.9,2792.8,0.95]
[1749627964281,4.6476,2792.9,2792.8,0.95]
[1749627964576,4.8268,2792.9,2792.8,0.95]
[1749627965520,11.0115997,2792.9,2792.8,0.95]
[1749627967605,15.7115997,2792.9,2792.8,0.95]
[1749627968193,25.7115997,2792.9,2792.8,0.95]
[1749627968397,28.28374914,2792.9,2792.8,0.95]
[1749627969604,10.0,2792.8,2791.8,3.654]
[1749627969804,6.1847997,2792.5,2791.9,0.95]
[1749627970010,3.654,2792.4,2791.9,0.95]
[1749627970209,0.1792,2792.0,2791.6,2.82091151]
[1749627970410,0.1792,2792.0,2791.7,0.95]
[1749627971404,0.1792,2792.0,2791.5,0.1792]
[1749627971703,0.1792,2792.0,2791.5,3.7614487]
[1749627972039,0.1792,2792.0,2791.6,13.58215774]
[1749627972330,0.1792,2792.0,2791.7,10.0]
[1749627973749,4.7,2792.7,2791.9,6.1847997]
[1749627973954,0.1792,2792.4,2792.0,0.48381652]
[1749627974157,0.1792,2792.4,2792.2,6.1847997]
[1749627974314,0.1792,2792.4,2792.1,3.654]
[1749627974646,0.1792,2792.4,2792.0,9.94562364]
[1749627975148,0.1792,2792.4,2792.1,10.55425305]
[1749627975451,0.1792,2792.4,2792.2,1.284253]
[1749627975647,0.1792,2792.4,2792.2,0.95]
[1749627975850,0.1792,2792.4,2792.3,0.33426222]
[1749627976068,0.1792,2792.4,2792.2,0.95]
[1749627976571,0.1792,2792.4,2792.3,0.33426583]
[1749627977175,0.1792,2792.4,2792.2,0.95]
[1749627977920,0.1792,2792.4,2792.3,0.33435424]
[1749627978112,0.1792,2792.4,2792.3,0.33435804]
[1749627978560,0.1792,2792.4,2792.3,0.33435807]
[1749627978758,0.1792,2792.4,2792.2,0.95]
[1749627979483,0.1792,2792.4,2792.3,0.949]
[1749627979759,0.1792,2792.4,2792.3,1.28334632]
[1749627980536,0.1792,2792.4,2792.3,0.949]
[1749627981248,0.1792,2792.4,2792.3,1.28344001]
[1749627981473,0.1792,2792.4,2792.3,0.949]
[1749627981820,0.1792,2792.4,2792.3,1.28341718]
[1749627982166,0.1792,2792.4,2792.3,0.949]
[1749627982325,0.1792,2792.4,2792.3,1.28341203]
[1749627982524,0.1792,2792.4,2792.3,1.28340281]
[1749627982737,0.1792,2792.4,2792.3,0.949]
[1749627983529,0.1792,2792.4,2792.3,1.28341558]
[1749627983736,0.1792,2792.4,2792.3,1.28341315]
[1749627984261,0.1792,2792.4,2792.3,1.28348181]
[1749627984554,0.1792,2792.4,2792.3,0.949]
[1749627984747,0.1792,2792.4,2792.3,1.28349589]
[1749627984955,0.1792,2792.4,2792.3,1.28349634]
[1749627985127,0.1792,2792.4,2792.3,1.283492]
[1749627985334,0.1792,2792.4,2792.3,7.1337997]
[1749627985541,0.1792,2792.6,2792.4,10.0]
[1749627985937,0.1792,2792.6,2792.5,0.33446001]
[1749627986242,0.1792,2792.6,2792.5,0.33445942]
[1749627987183,0.1792,2792.6,2792.3,10.949]
[1749627987543,0.1792,2792.6,2792.4,0.33447277]
[1749627987877,0.1792,2792.6,2792.5,0.33447233]
[1749627988077,0.1792,2792.6,2792.3,10.949]
[1749627988264,0.1792,2792.6,2792.5,2.14118215]
[1749627988585,0.16082312,2792.6,2792.5,2.47565613]
[1749627988786,0.16082312,2792.6,2792.5,2.14118215]
[1749627988949,0.16082312,2792.6,2792.5,2.47568844]
[1749627989280,0.16082312,2792.6,2792.5,2.14118215]
[1749627989840,0.16082312,2792.6,2792.5,0.33450617]
[1749627990042,0.8899854,2792.6,2792.3,3.09018215]
[1749627990260,0.16082312,2792.6,2792.3,3.09018215]
[1749627990472,7.1307997,2792.7,2792.3,3.09018215]
[1749627990661,0.1792,2792.4,2792.3,3.09018215]
[1749627990856,0.1792,2792.4,2792.3,2.14118215]
[1749627991054,0.1792,2792.4,2792.3,0.949]
[1749627991287,4.8792,2792.4,2792.3,0.949]
[1749627991698,4.8792,2792.4,2792.3,1.28353859]
[1749627992047,4.8792,2792.4,2792.3,0.949]
[1749627992668,4.8792,2792.4,2792.3,1.28361382]
[1749627992873,4.8792,2792.4,2792.3,0.949]
[1749627993068,4.8792,2792.4,2792.3,1.2836138]
[1749627993783,4.8792,2792.4,2792.3,0.949]
[1749627993986,4.8792,2792.4,2792.3,1.28361488]
[1749627994170,4.8792,2792.4,2792.3,3.09018215]
[1749627995073,4.8792,2792.4,2792.3,3.42478138]
[1749627995475,4.8792,2792.4,2792.3,3.42474924]
[1749627995656,4.8792,2792.4,2792.3,3.42479322]
[1749627995858,4.8792,2792.4,2792.3,0.949]
[1749627996055,4.8792,2792.4,2792.3,3.09105493]
[1749627996490,4.8792,2792.4,2792.3,2.14205493]
[1749627996990,4.8792,2792.4,2792.3,3.09105493]
[1749627997153,4.8792,2792.4,2792.3,3.42578445]
[1749627997350,4.8792,2792.4,2792.3,3.09105493]
[1749627997549,4.8792,2792.4,2792.3,3.42577486]
[1749627997752,4.8792,2792.4,2792.3,3.09105493]
[1749627997988,4.8792,2792.4,2792.3,3.42577359]
[1749627998186,4.8792,2792.4,2792.3,3.09105493]
[1749627998385,4.8792,2792.4,2792.3,2.14205493]
[1749627998588,4.8792,2792.4,2792.3,3.42577675]
[1749627998791,5.46439,2792.4,2792.3,3.42577675]
[1749627998990,5.46439,2792.4,2792.3,3.42597918]
[1749627999285,5.46439,2792.4,2792.3,2.71257682]
[1749627999507,5.46439,2792.4,2792.3,2.37762062]
[1749628000355,5.46439,2792.4,2792.3,2.71257954]
[1749628000765,5.46439,2792.4,2792.3,2.37762062]
[1749628000970,5.46439,2792.4,2792.3,2.71257943]
[1749628001253,5.46439,2792.4,2792.3,2.37762062]
[1749628001687,5.46439,2792.4,2792.3,2.71258051]
[1749628002461,5.46439,2792.4,2792.3,2.37762062]
[1749628002876,5.46439,2792.4,2792.3,2.71242008]
[1749628003201,5.46439,2792.4,2792.3,2.37762062]
[1749628003564,5.46439,2792.4,2792.3,2.71242133]
[1749628003896,5.46439,2792.4,2792.3,2.37762062]
[1749628004398,11.6491897,2792.4,2792.2,1.42862062]
[1749628004601,0.643709,2792.3,2792.2,1.42862062]
[1749628004807,0.822909,2792.3,2792.2,0.949]
[1749628005299,0.822909,2792.3,2792.2,1.28373714]
[1749628005497,0.822909,2792.3,2792.2,1.28373412]
[1749628005705,12.7227087,2792.3,2792.2,1.28373412]
[1749628006012,16.3244087,2792.3,2792.2,1.28377392]
[1749628006303,16.3244087,2792.3,2792.2,0.949]
[1749628006503,16.3244087,2792.3,2792.2,1.28378209]
[1749628006660,16.3244087,2792.3,2792.2,0.949]
[1749628006861,16.3244087,2792.3,2792.2,1.2837356]
[1749628007303,16.3244087,2792.3,2792.2,1.28328825]
[1749628007803,16.3244087,2792.3,2792.2,0.949]
[1749628008209,16.3244087,2792.3,2791.6,1.42862062]
[1749628008210,0.9748,2792.2,2791.6,1.42862062]
[1749628008414,7.1595997,2791.8,2791.7,1.28228895]
[1749628008715,7.3387997,2791.8,2791.7,0.948]
[1749628008875,7.3387997,2791.8,2791.7,1.28228983]
[1749628009076,12.0387997,2791.8,2791.7,1.28228983]
[1749628009521,5.854,2791.8,2791.7,1.28199935]
[1749628009803,5.854,2791.8,2791.7,0.948]
[1749628009804,13.60787967,2791.8,2791.7,0.948]
[1749628010814,7.42307997,2791.8,2791.7,1.28193317]
[1749628011305,7.42307997,2791.8,2791.7,0.948]
[1749628012306,7.42307997,2791.8,2791.7,1.28193118]
[1749628012714,4.8792,2791.8,2791.7,1.28193118]
[1749628012885,4.8792,2791.8,2791.7,0.948]
[1749628013085,4.8792,2791.8,2791.7,1.28174412]
[1749628013284,4.8792,2791.8,2791.7,1.28174403]
[1749628013480,4.8792,2791.8,2791.7,1.28174411]
[1749628013829,4.8792,2791.8,2791.7,0.948]
[1749628014522,4.8792,2791.8,2791.7,1.28170971]
[1749628014725,4.8792,2791.8,2791.7,1.28169121]
[1749628014928,4.8792,2791.8,2791.7,0.948]
[1749628015880,4.8792,2791.8,2791.7,1.2816873]
[1749628016478,4.8792,2791.8,2791.7,1.28168781]
[1749628016681,4.8792,2791.8,2791.7,0.948]
[1749628016883,4.8792,2791.8,2791.7,1.28179097]
[1749628017078,4.8792,2791.8,2791.7,0.948]
[1749628017919,4.8792,2791.8,2791.7,1.28178669]
[1749628018219,4.8792,2791.8,2791.7,0.948]
[1749628018692,4.8792,2791.8,2791.7,1.28194891]
[1749628018900,4.8792,2791.8,2791.7,0.948]
[1749628019297,4.8792,2791.8,2791.7,1.28194888]
[1749628019496,4.8792,2791.8,2791.4,10.69962062]
[1749628019821,4.7,2791.8,2791.5,0.948]
[1749628020029,0.1792,2791.6,2791.5,0.948]
[1749628020201,4.8792,2791.6,2791.5,0.948]
[1749628020894,4.8792,2791.6,2791.5,1.28195053]
[1749628021100,4.8792,2791.6,2791.5,1.28197691]
[1749628021319,4.8792,2791.6,2791.5,1.28197025]
[1749628021539,4.8792,2791.6,2791.5,0.948]
[1749628022197,4.8792,2791.6,2791.5,1.28204507]
[1749628022938,4.8792,2791.6,2791.5,0.948]
[1749628024740,4.8792,2791.6,2791.5,7.1327997]
[1749628024941,4.7,2791.6,2791.5,0.948]
[1749628025121,4.7,2791.6,2791.5,10.221]
[1749628025524,4.7,2791.6,2791.5,13.80330342]
[1749628025728,4.7,2791.6,2791.5,10.221]
[1749628025907,0.1792,2791.7,2791.5,10.221]
[1749628026113,0.1792,2791.7,2791.5,13.80325091]
[1749628026846,4.7,2792.0,2791.5,13.80325091]
[1749628026847,4.7,2792.0,2791.6,9.8367997]
[1749628027147,4.7,2792.0,2791.9,19.76658987]
[1749628027309,4.7,2792.0,2791.9,17.23379017]
[1749628028243,4.7,2792.8,2792.1,3.58153361]
[1749628028467,0.1792,2792.3,2792.1,3.58153361]
[1749628029141,0.1792,2792.3,2792.0,7.2336079]
[1749628029657,0.1792,2792.3,2792.1,3.58149659]
[1749628030151,0.1792,2792.3,2792.0,7.23359969]
[1749628030555,0.1792,2792.3,2792.0,3.652]
[1749628030970,7.1334997,2792.4,2791.9,10.0]
[1749628031170,0.71334997,2792.3,2792.1,0.948]
[1749628031377,0.1792,2792.2,2792.1,0.948]
[1749628031575,4.8792,2792.2,2792.1,0.948]
[1749628032083,11.0639997,2792.2,2792.1,0.948]
[1749628032656,4.8792,2792.2,2792.1,0.948]
[1749628032887,6.15180497,2792.2,2791.5,12.85529499]
[1749628033090,0.1792,2791.8,2791.6,14.599]
[1749628033887,0.1792,2791.8,2791.7,0.948]
[1749628034985,0.1792,2791.8,2791.7,1.28297536]
[1749628035358,0.1792,2791.8,2791.7,0.33481509]
[1749628035557,0.1792,2791.8,2791.7,1.28281509]
[1749628035776,0.1792,2791.8,2791.7,1.28281767]
[1749628035993,0.1792,2791.8,2791.7,0.948]
[1749628036701,0.1792,2791.8,2791.7,1.28281534]
[1749628036900,0.1792,2791.8,2791.7,0.948]
[1749628037293,0.1792,2791.8,2791.7,1.28275515]
[1749628037496,0.1792,2791.8,2791.7,0.948]
[1749628038207,0.1792,2791.8,2791.7,1.28275075]
[1749628038398,0.1792,2791.8,2791.7,0.947]
[1749628038598,4.7,2792.2,2792.0,3.58165372]
[1749628038813,0.993,2792.6,2792.0,3.58159955]
[1749628038814,0.1792,2792.3,2792.0,3.58159955]
[1749628039113,0.1792,2792.3,2792.1,3.58152343]
[1749628039489,0.1792,2792.3,2792.2,0.3346168]
[1749628039714,0.1792,2792.3,2792.1,3.58152343]
[1749628040086,0.1792,2792.3,2792.1,3.5814685]
[1749628040409,0.1792,2792.3,2792.0,3.5816099]
[1749628040616,0.1792,2792.3,2792.1,3.58151378]
[1749628042408,0.1792,2792.3,2792.0,3.58159713]
[1749628042604,0.1792,2792.3,2792.0,12.85259713]
[1749628042921,0.9785,2792.3,2792.1,2.1387908]
[1749628043086,0.1792,2792.1,2792.0,11.4097908]
[1749628043422,4.8792,2792.1,2792.0,9.271]
[1749628043621,4.8792,2792.1,2792.0,10.218]
[1749628043820,6.13224197,2792.1,2792.0,10.218]
[1749628050434,7.12534197,2792.1,2792.0,10.34127012]
[1749628050599,7.12534197,2792.1,2792.0,10.218]
[1749628052426,7.12534197,2792.1,2792.0,10.55314967]
[1749628052717,7.12534197,2792.1,2792.0,10.218]
[1749628052928,7.12534197,2792.1,2792.0,10.55310902]
[1749628053249,7.12534197,2792.1,2792.0,10.218]
[1749628053416,7.12534197,2792.1,2792.0,10.55309681]
[1749628053744,7.12534197,2792.1,2792.0,10.218]
[1749628055464,2.42534197,2792.1,2792.0,10.218]
[1749628055758,1.1723,2792.1,2792.0,10.55304617]
[1749628056362,1.1723,2792.1,2792.0,9.271]
[1749628056652,1.1723,2792.1,2792.0,10.55315332]
[1749628056863,1.1723,2792.1,2792.0,10.218]
[1749628057460,0.1792,2792.1,2792.0,10.55344866]
[1749628057858,0.708242,2792.1,2792.0,10.55344866]
[1749628058060,0.708242,2792.1,2792.0,10.218]
[1749628058260,0.708242,2792.1,2792.0,10.55278897]
[1749628058584,0.708242,2792.1,2792.0,10.218]
[1749628058982,0.708242,2792.1,2792.0,10.55279535]
[1749628059139,0.708242,2792.1,2792.0,10.55279557]
[1749628059751,0.708242,2792.1,2792.0,10.218]
[1749628059752,1.679642,2792.1,2792.0,10.218]
[1749628059952,1.679642,2792.1,2792.0,10.55281564]
[1749628060154,1.679642,2792.1,2792.0,10.218]
[1749628060642,1.679642,2792.1,2792.0,10.55282048]
[1749628061061,1.679642,2792.1,2792.0,10.5528226]
[1749628061259,1.679642,2792.1,2792.0,9.6058226]
[1749628061464,1.679642,2792.1,2792.0,10.5528226]
[1749628061666,7.8644417,2792.1,2792.0,10.218]
[1749628061862,10.9853997,2792.1,2792.0,10.55262865]
[1749628062162,10.9853997,2792.1,2792.0,10.218]
[1749628062553,10.9853997,2792.1,2792.0,10.55262886]
[1749628062876,12.08393967,2792.1,2792.0,10.55262886]
[1749628063251,5.89913997,2792.1,2792.0,10.55262886]
[1749628063465,10.9853997,2792.1,2792.0,10.55266859]
[1749628063796,10.9853997,2792.1,2792.0,10.55266946]
[1749628064087,10.9853997,2792.1,2792.0,10.218]
[1749628064473,10.9853997,2792.1,2792.0,10.55266929]
[1749628065063,10.9853997,2792.1,2792.0,10.55267442]
[1749628065265,12.08393967,2792.1,2792.0,10.218]
[1749628065463,12.08393967,2792.1,2792.0,10.55303598]
[1749628065664,12.08393967,2792.1,2792.0,10.218]
[1749628066404,12.08393967,2792.1,2792.0,10.55303574]
[1749628066588,12.08393967,2792.1,2792.0,10.55307523]
[1749628066959,12.08393967,2792.1,2792.0,10.218]
[1749628068186,12.08393967,2792.1,2792.0,10.55305889]
[1749628068385,5.89913997,2792.1,2792.0,10.55305889]
[1749628068587,4.8006,2792.1,2792.0,10.55305537]
[1749628068802,4.8006,2792.1,2792.0,10.218]
[1749628069172,4.8006,2792.1,2792.0,1.28105932]
[1749628069502,4.8006,2792.1,2792.0,1.28105454]
[1749628069671,4.8006,2792.1,2792.0,1.28105657]
[1749628069870,5.89913997,2792.1,2792.0,1.28110114]
[1749628070284,5.89913997,2792.1,2792.0,0.946]
[1749628070480,5.89913997,2792.1,2792.0,1.28110094]
[1749628070774,5.89913997,2792.1,2792.0,0.946]
[1749628071704,5.89913997,2792.1,2792.0,1.28110145]
[1749628072108,5.89913997,2792.1,2792.0,1.28110105]
[1749628072301,5.89913997,2792.1,2792.0,0.946]
[1749628072807,4.8006,2792.1,2792.0,1.28109615]
[1749628072973,4.8006,2792.1,2792.0,0.946]
[1749628073614,4.8006,2792.1,2792.0,1.28109441]
[1749628073822,4.8006,2792.1,2792.0,0.946]
[1749628074125,9.5006,2792.1,2792.0,1.28111831]
[1749628074506,9.5006,2792.1,2792.0,0.946]
[1749628074833,11.06913997,2792.1,2792.0,0.946]
[1749628075123,11.06913997,2792.1,2792.0,1.28111819]
[1749628075326,11.06913997,2792.1,2792.0,0.946]
[1749628075530,11.06913997,2792.1,2792.0,1.2811183]
[1749628076024,11.06913997,2792.1,2792.0,1.28111775]
[1749628076237,11.06913997,2792.1,2792.0,0.946]
[1749628077139,11.06913997,2792.1,2792.0,1.28111827]
[1749628077442,11.06913997,2792.1,2792.0,1.28111818]
[1749628077859,11.06913997,2792.1,2792.0,1.28114188]
[1749628078032,11.06913997,2792.1,2792.0,0.946]
[1749628078915,11.06913997,2792.1,2792.0,1.28114265]
[1749628079643,11.06913997,2792.1,2792.0,0.946]
[1749628080748,11.06913997,2792.1,2792.0,1.28114971]
[1749628081372,11.06913997,2792.1,2792.0,1.28116768]
[1749628081768,11.06913997,2792.1,2792.0,1.28117118]
[1749628081952,11.06913997,2792.1,2792.0,1.2811712]
[1749628082274,11.06913997,2792.1,2792.0,0.946]
[1749628082580,11.06913997,2792.1,2792.0,1.28117103]
[1749628083432,11.06913997,2792.1,2792.0,0.946]
[1749628084380,11.06913997,2792.1,2792.0,1.28119086]
[1749628084891,11.06913997,2792.1,2792.0,0.946]
[1749628085377,10.09673997,2792.1,2792.0,0.946]
[1749628086044,10.09673997,2792.1,2792.0,1.28118753]
[1749628086649,10.09673997,2792.1,2792.0,1.28120567]
[1749628086845,10.09673997,2792.1,2792.0,0.946]
[1749628087568,10.09673997,2792.1,2792.0,1.28125705]
[1749628087763,10.09673997,2792.1,2792.0,1.28125697]
[1749628088358,10.09673997,2792.1,2792.0,1.2812553]
[1749628088558,10.09673997,2792.1,2792.0,0.946]
[1749628088954,10.09673997,2792.1,2792.0,1.28125733]
[1749628089159,10.09673997,2792.1,2792.0,0.946]
[1749628089361,10.09673997,2792.1,2792.0,1.28125729]
[1749628090287,10.09673997,2792.1,2792.0,1.28126306]
[1749628090588,0.937,2792.0,2791.4,11.41882927]
[1749628090883,6.1847997,2791.7,2791.5,0.946]
[1749628091084,9.8337997,2791.7,2791.5,0.946]
[1749628091292,9.8337997,2791.7,2791.6,0.33528643]
[1749628091486,9.8337997,2791.7,2791.6,0.33528919]
[1749628091786,3.8282,2791.7,2791.5,0.946]
[1749628092891,3.8282,2791.7,2791.6,0.946]
[1749628093082,3.649,2791.7,2791.6,0.946]
[1749628093280,3.648,2791.7,2791.6,0.946]
[1749628093476,0.1792,2791.7,2791.6,0.946]
[1749628093992,0.1792,2791.7,2791.6,1.28129867]
[1749628094192,0.1792,2791.7,2791.6,0.946]
[1749628094490,6.3639997,2791.7,2791.4,9.273]
[1749628094693,6.1847997,2791.7,2791.6,0.946]
[1749628094990,6.1847997,2791.7,2791.6,1.28132632]
[1749628095200,6.3639997,2791.7,2791.6,0.33532632]
[1749628095359,7.44915967,2791.7,2791.6,1.28134148]
[1749628095563,7.44915967,2791.7,2791.6,0.946]
[1749628096489,7.44915967,2791.7,2791.6,1.28143986]
[1749628096865,7.44915967,2791.7,2791.6,1.28143932]
[1749628097066,7.44915967,2791.7,2791.6,1.28143916]
[1749628097261,7.44915967,2791.7,2791.6,1.28143995]
[1749628097488,7.44915967,2791.7,2791.6,0.946]
[1749628099101,7.44915967,2791.7,2791.6,0.945]
[1749628099511,7.44915967,2791.7,2791.4,9.273]
[1749628099666,3.648,2791.6,2791.5,0.945]
[1749628100099,3.8272,2791.6,2791.5,1.28043002]
[1749628100302,3.8272,2791.6,2791.5,0.945]
[1749628100601,8.5272,2791.6,2791.5,0.945]
[1749628100899,8.5272,2791.6,2791.5,1.2801416]
[1749628101094,8.5272,2791.6,2791.5,0.945]
[1749628101301,9.4817,2791.6,2791.5,0.945]
[1749628101601,9.4817,2791.6,2791.5,1.28014503]
[1749628101783,9.4817,2791.6,2791.5,0.67029422]
[1749628101991,9.4817,2791.6,2791.5,1.61529657]
[1749628102184,9.4817,2791.6,2791.5,1.28014503]
[1749628102909,9.4817,2791.6,2791.5,1.61529672]
[1749628103105,9.4817,2791.6,2791.5,1.28014503]
[1749628103299,9.4817,2791.6,2791.5,1.61529702]
[1749628103503,9.4817,2791.6,2791.5,1.28014503]
[1749628103705,10.4133,2791.6,2791.5,1.28014503]
[1749628103917,10.4133,2791.6,2791.5,1.61530657]
[1749628104086,10.4133,2791.6,2791.5,1.61532116]
[1749628104282,10.4133,2791.6,2791.5,1.28014503]
[1749628104498,10.4133,2791.6,2791.5,1.61531872]
[1749628104693,10.4133,2791.6,2791.5,1.28014503]
[1749628105204,10.4133,2791.6,2791.5,1.61532257]
[1749628105409,6.7653,2791.6,2791.5,1.61532257]
[1749628105706,6.7653,2791.6,2791.5,1.61531199]
[1749628105707,10.4133,2791.6,2791.5,1.61531199]
[1749628105876,10.9633,2791.6,2791.5,1.61531488]
[1749628106072,10.9633,2791.6,2791.5,1.28014503]
[1749628106296,10.4133,2791.6,2791.5,1.28014503]
[1749628106697,10.4133,2791.6,2791.5,1.61531899]
[1749628107522,10.4133,2791.6,2791.5,1.28014503]
[1749628107744,10.4133,2791.6,2791.5,1.61477327]
[1749628107902,10.4133,2791.6,2791.5,1.61477507]
[1749628108100,10.4133,2791.6,2791.5,1.28014503]
[1749628108296,10.4133,2791.6,2791.5,0.66977742]
[1749628108604,10.4133,2791.6,2791.5,1.61478094]
[1749628109235,10.4133,2791.6,2791.5,1.61478112]
[1749628109529,10.4133,2791.6,2791.5,1.28014503]
[1749628109735,6.7653,2791.6,2791.5,1.28014503]
[1749628109933,10.4133,2791.6,2791.5,1.28014503]
[1749628110496,10.4133,2791.6,2791.5,1.61477944]
[1749628111255,10.4133,2791.6,2791.5,1.28014503]
[1749628111460,5.8337,2791.6,2791.5,1.28014503]
[1749628111669,8.5272,2791.6,2791.5,1.28014503]
[1749628112119,8.5272,2791.6,2791.5,1.61452174]
[1749628112619,8.5272,2791.6,2791.5,3.0425896]
[1749628112946,8.5272,2791.6,2791.5,3.04254766]
[1749628113326,8.5272,2791.6,2791.5,3.37683067]
[1749628113632,8.5272,2791.6,2791.5,3.04254766]
[1749628113843,4.8792,2791.6,2791.5,3.04254766]
[1749628114050,8.5272,2791.6,2791.5,3.37682983]
[1749628114244,8.5272,2791.6,2791.5,3.37690861]